Cogmind - Beta 12 X1 @@@ ROGUE MODE // 2022.08.16 @ 18:44:05 Player: Exp. Geonium Core Result: Destroyed by G-47 Trooper with Particle Gun Performance ------------- Evolutions (2) 1000 Regions Visited (6) 1200 Robots Destroyed (32) 160 Value Destroyed (865) 865 Prototype IDs (26) 520 Alien Tech Used (0) 0 Bonus (513) 513 TOTAL SCORE: 4258 Bonus ------- High Alert Combat Kills 13 Entered Garrisons 200 Aligned with FarCom 300 Cogmind --------- Core Integrity 0/550 Matter 25/300 Energy 100/100 System Corruption 0% Temperature Cool (15) Movement Core (50) Location -8/Garrison Parts ------- > --- POWER (1) -------- (None) > --- PROPULSION (3) --- (None) > --- UTILITY (5) ------ Signal Interpreter > --- WEAPON (2) ------- Assault Rifle > --- INVENTORY (5) ---- Experimental Sensor Array Hacking Suite Field Lobotomy Kit (5) Peak State ------------ > --- POWER ------------ Light Nuclear Core > --- PROPULSION ------- Light Treads Light Treads > --- UTILITY ---------- Small Storage Unit Experimental Sensor Array > --- WEAPON ----------- Light Assault Rifle Grenade Launcher > --- INVENTORY -------- Ion Engine Hacking Suite Assault Rifle Assault Rifle Light Assault Rifle Light Assault Rifle Light Assault Rifle Datajack [Rating: 18] Favorites ----------- Power Light Nuclear Core Engine Ion Engine Power Core Light Nuclear Core Propulsion Light Treads Treads Light Treads Leg Aluminum Leg Utility Small Storage Unit Device Experimental Sensor Array Storage Small Storage Unit Processor Signal Interpreter Protection Light Armor Plating Weapon Light Assault Rifle Ballistic Gun Light Assault Rifle Launcher Grenade Launcher Build | -11 -10 -10 -10 -9 -8 -8 ------- Run | Scr Mat Min Exi Min Mat Gar Slots Evolved 4 | . . . . . 4 . Power . | . . . . . . . Propulsion 1 | . . . . . 1 . Utility 3 | . . . . . 3 . Weapon . | . . . . . . . Parts Attached 24 | 2 2 7 1 . 10 2 Power 1 | . . 1 . . . . Engine . | . . . . . . . Core 1 | . . 1 . . . . Reactor . | . . . . . . . Propulsion 4 | 2 . 1 . . 1 . Treads 4 | 2 . 1 . . 1 . Leg . | . . . . . . . Wheel . | . . . . . . . Hover . | . . . . . . . Flight . | . . . . . . . Utility 7 | . . 1 1 . 5 . Device 1 | . . 1 . . . . Storage 1 | . . . 1 . . . Processor 1 | . . . . . 1 . Hackware . | . . . . . . . Protection 4 | . . . . . 4 . Artifact . | . . . . . . . Weapon 12 | . 2 4 . . 4 2 Energy Gun . | . . . . . . . Energy Cannon . | . . . . . . . Ballistic Gun 8 | . 1 2 . . 3 2 Ballistic Cannon . | . . . . . . . Launcher 4 | . 1 2 . . 1 . Special Weapon . | . . . . . . . Impact Weapon . | . . . . . . . Slashing Weapon . | . . . . . . . Piercing Weapon . | . . . . . . . Special Melee Weapon . | . . . . . . . Unidentified Prototypes 1 | . . 1 . . . . Parts Lost 9 | . . 1 . . 6 2 Power 1 | . . . . . 1 . Propulsion 4 | . . 1 . . 2 1 Utility 2 | . . . . . 2 . Weapon 2 | . . . . . 1 1 Highest Loss Streak 6 | . . 1 . . 6 2 To Critical Strikes . | . . . . . . . Average Slot Usage (%) 82 | . 85 85 88 100 74 21 Engine 3 | . 14 3 . . . . Core 8 | . . 10 14 14 8 . Treads 24 | . 28 28 28 28 17 5 Storage 16 | . 14 14 16 28 17 . Processor 2 | . . . . . 6 9 Protection 1 | . . . . . 6 . Ballistic Gun 16 | . 26 21 14 14 9 7 Launcher 8 | . 1 6 14 14 8 . Naked Turns . | . . . . . . . Heaviest Build 60 | 13 14 14 54 54 60 . Greatest Support 40 | 40 40 40 40 40 40 3 Greatest Overweight (x) 1 | . . . 1 1 1 . Average Overweight (x) . | . . . . 1 . . Largest Inventory Capacity 20 | 8 8 8 20 20 20 5 Average Capacity 12 | 8 8 8 10 20 19 5 Most Carried 13 | 6 8 8 10 10 13 5 Average Carried 8 | 4 4 7 8 10 11 4 Final Capacity 20 | 8 8 8 20 20 5 5 Final Carried 10 | 2 8 8 10 10 5 3 Class Distribution -------------------- 100% | Mutant Dominant Class ---------------- Mutant | -10/Materials Mutant | -10/Mines Mutant | -10/Exiles Mutant | -9/Mines Mutant | -8/Materials Mutant | -8/Garrison Resources | -11 -10 -10 -10 -9 -8 -8 ----------- Run | Scr Mat Min Exi Min Mat Gar Matter Collected 567 | 200 133 98 . 14 122 . Remotely . | . . . . . . . Salvage Created 798 | . 264 132 . . 402 . Parts 53 | . 20 13 . . 20 . Haulers Intercepted 1 | . 1 . . . . . Recyclers Shooed 2 | . . 1 . . 1 . Parts Field Recycled . | . . . . . . . Retrieved Matter . | . . . . . . . Parts Self-Destructed . | . . . . . . . Prevented . | . . . . . . . Kills | -11 -10 -10 -10 -9 -8 -8 ------- Run | Scr Mat Min Exi Min Mat Gar Combat Hostiles Destroyed 24 | . 6 8 . . 10 . Guns 11 | . 6 4 . . 1 . AOE 13 | . . 4 . . 9 . Classes Destroyed 8 | . 5 . . . 3 . Worker 3 | . 1 . . . 2 . Hauler 1 | . 1 . . . . . Recycler 2 | . . . . . 2 . Operator 1 | . 1 . . . . . Watcher 1 | . . . . . 1 . Swarmer 9 | . 3 6 . . . . Grunt 14 | . 3 2 . . 9 . Sentry 1 | . . . . . 1 . Best Kill Streak 7 | . 4 3 . . 7 . Combat Bots Only 6 | . 3 3 . . 6 . Max Kills in Single Turn 3 | . 1 2 . . 3 . Gunslinging . | . . . . . . . Exploded 3 | . . 2 . . 3 . Melee . | . . . . . . . Uniques/NPCs Destroyed . | . . . . . . . Combat | -11 -10 -10 -10 -9 -8 -8 -------- Run | Scr Mat Min Exi Min Mat Gar Damage Taken 2171 | . 248 420 . . 1186 317 Core 644 | . 26 57 . . 385 176 Absorbed by Shields . | . . . . . . . Core Remaining (%) 83 | 100 . . . 66 . . Volleys Fired 82 | . 25 25 . . 25 7 Largest 2 | . 2 2 . . 2 2 Hottest 40 | . 40 40 . . 40 40 Shots Fired 134 | . 47 46 . . 28 13 Gun 105 | . 44 42 . . 6 13 Cannon . | . . . . . . . Launcher 29 | . 3 4 . . 22 . Special . | . . . . . . . Kinetic 105 | . 44 42 . . 6 13 Thermal . | . . . . . . . Explosive 29 | . 3 4 . . 22 . Electromagnetic . | . . . . . . . Robot Hit Streak 15 | . 7 15 . . 9 11 Robot Miss Streak 1 | . 1 1 . . 1 1 Penetration Max . | . . . . . . . Secondary Targets 2 | . 1 . . . 1 . Max Gunslinging Chain 1 | . 1 . . . 1 . Shots Hit Robots 85 | . 26 37 . . 10 12 Core Hits 69 | . 14 13 . . 40 2 Critical Kills . | . . . . . . . Critical Parts Destroyed 2 | . 2 . . . . . Critical Strikes 2 | . 2 . . . . . Destroy 2 | . 2 . . . . . Melee Attacks . | . . . . . . . Impact . | . . . . . . . Slashing . | . . . . . . . Piercing . | . . . . . . . Sneak Attacks . | . . . . . . . Combat Hostiles . | . . . . . . . Follow-up Attacks . | . . . . . . . Damage Inflicted 3076 | . 307 582 . . 2047 140 Guns 700 | . 235 279 . . 46 140 Cannons . | . . . . . . . Explosions 2375 | . 72 302 . . 2001 . Melee . | . . . . . . . Ramming 1 | . . 1 . . . . Kinetic 700 | . 235 279 . . 46 140 Thermal . | . . . . . . . Explosive 2375 | . 72 302 . . 2001 . Electromagnetic . | . . . . . . . Impact . | . . . . . . . Slashing . | . . . . . . . Piercing . | . . . . . . . Highest Corruption . | . . . . . . . Average Corruption . | . . . . . . . Corruption Purged . | . . . . . . . Corruption Blocked . | . . . . . . . Overload Shots . | . . . . . . . Overflow Damage 93 | . . 37 . . 56 . Projectiles . | . . . . . . . Explosions 93 | . . 37 . . 56 . Melee . | . . . . . . . Knockbacks . | . . . . . . . Impact . | . . . . . . . Kinetic . | . . . . . . . Secondary . | . . . . . . . Self-Inflicted Damage 213 | . 36 46 . . 131 . Shots 8 | . 1 2 . . 5 . Rammed 1 | . . 1 . . . . Targets Rammed 1 | . . 1 . . . . Kicked . | . . . . . . . Crushed . | . . . . . . . Highest Temperature 51 | . 19 25 . . 51 6 Average Temperature 12 | . 9 9 . . 17 6 Received Heat Transfer 987 | . 72 177 . . 540 198 Siege Activations . | . . . . . . . Robots Corrupted . | . . . . . . . Combat Hostiles . | . . . . . . . Parts Fried . | . . . . . . . Impact Corruptions . | . . . . . . . Robots Melted . | . . . . . . . Combat Hostiles . | . . . . . . . Parts Melted . | . . . . . . . Heat Transferred . | . . . . . . . Parts Sabotaged . | . . . . . . . Parts Stolen . | . . . . . . . Parts Stripped . | . . . . . . . Power Chain Reactions . | . . . . . . . Missiles Intercepted . | . . . . . . . Alert | -11 -10 -10 -10 -9 -8 -8 ------- Run | Scr Mat Min Exi Min Mat Gar Peak Influence 438 | . 285 408 . . 438 265 Initial 265 | . . 111 . . . 265 Average 136 | . 106 322 . . 70 261 Maximum Alert Level 2 | . 1 2 . . 2 1 Low Security (%) 62 | 100 82 1 . 100 81 . Level 1 24 | . 17 56 . . 9 100 Level 2 13 | . . 42 . . 8 . Level 3 . | . . . . . . . Level 4 . | . . . . . . . Level 5 . | . . . . . . . High Security . | . . . . . . . Max Security . | . . . . . . . Squads Dispatched 5 | . . . . . 5 . Investigation 1 | . . . . . 1 . Extermination . | . . . . . . . Reinforcement 3 | . . . . . 3 . Assault . | . . . . . . . Garrison 1 | . . . . . 1 . Intercept . | . . . . . . . Searches Triggered . | . . . . . . . Construction Impeded 2 | . . . . . 2 . Haulers Reinforced . | . . . . . . . Active Scanning Responses . | . . . . . . . Cargo Convoy Interrupts . | . . . . . . . Stealth | -11 -10 -10 -10 -9 -8 -8 --------- Run | Scr Mat Min Exi Min Mat Gar Distress Signals 4 | . . . . . 4 . Communications Jammed . | . . . . . . . Distress Signals . | . . . . . . . Times Spotted 43 | . 7 10 . . 24 2 Peak Tracking Total 11 | . 3 3 . . 11 2 Tactical Retreats 2 | . 1 1 . . . . Traps | -11 -10 -10 -10 -9 -8 -8 ------- Run | Scr Mat Min Exi Min Mat Gar Traps Triggered . | . . . . . . . Indirectly . | . . . . . . . Trap Hack Attempts . | . . . . . . . Triggered . | . . . . . . . Disarmed . | . . . . . . . Reprogrammed . | . . . . . . . Reused . | . . . . . . . Traps Extracted . | . . . . . . . Installed . | . . . . . . . Triggered . | . . . . . . . Exploded 2 | . . . 2 . . . Machines | -11 -10 -10 -10 -9 -8 -8 ---------- Run | Scr Mat Min Exi Min Mat Gar Machines Disabled 5 | . 2 . . . 3 . Max in Single Turn 3 | . 1 . . . 3 . Machines Sabotaged . | . . . . . . . Garrisons Compromised . | . . . . . . . Overloaded Fab Kills . | . . . . . . . Hacking | -11 -10 -10 -10 -9 -8 -8 --------- Run | Scr Mat Min Exi Min Mat Gar Machines Accessed 5 | . 2 . 1 . 2 . Terminals 2 | . 2 . . . . . Fabricators . | . . . . . . . Repair Stations . | . . . . . . . Recycling Units . | . . . . . . . Scanalyzers 1 | . . . . . 1 . Garrison Access 1 | . . . . . 1 . Total Hacks 13 | . 8 . 1 . 4 . Successful 10 | . 5 . 1 . 4 . Failed 3 | . 3 . . . . . Catastrophic 1 | . 1 . . . . . Database Lockouts . | . . . . . . . Manual 7 | . 6 . 1 . . . Terminals 8 | . 8 . . . . . Fabricators . | . . . . . . . Repair Stations . | . . . . . . . Recycling Units . | . . . . . . . Scanalyzers 3 | . . . . . 3 . Garrison Access 1 | . . . . . 1 . Terminal Hacks 6 | . 5 . 1 . . . Robot Analysis 2 | . 2 . . . . . Prototype ID Bank 1 | . 1 . . . . . Branch Access Points 1 | . 1 . . . . . Zone Layout 1 | . 1 . . . . . EX-Prototype ID Bank 1 | . . . 1 . . . Fabricator Hacks . | . . . . . . . Repair Station Hacks . | . . . . . . . Recycling Unit Hacks . | . . . . . . . Scanalyzer 3 | . . . . . 3 . Insert Component 1 | . . . . . 1 . Analyze 2 | . . . . . 2 . Garrison Access Hacks 1 | . . . . . 1 . Unlock Access 1 | . . . . . 1 . Unauthorized Hacks . | . . . . . . . Terminals . | . . . . . . . Fabricators . | . . . . . . . Repair Stations . | . . . . . . . Recycling Units . | . . . . . . . Scanalyzers . | . . . . . . . Garrison Access . | . . . . . . . Data Cores Recovered . | . . . . . . . Used . | . . . . . . . Hacking Detections 2 | . 1 . . . 1 . Full Trace Events 1 | . . . . . 1 . Feedback Events . | . . . . . . . Feedback Blocked . | . . . . . . . Robot Schematics Acquired . | . . . . . . . Robots Built . | . . . . . . . Authchips . | . . . . . . . Time . | . . . . . . . Total Robot Build Rating . | . . . . . . . Part Schematics Acquired . | . . . . . . . Parts Built . | . . . . . . . Authchips . | . . . . . . . Time . | . . . . . . . Total Part Build Rating . | . . . . . . . Parts Repaired . | . . . . . . . Time . | . . . . . . . Parts Recycled . | . . . . . . . Recycled Matter . | . . . . . . . Retrieved Matter . | . . . . . . . Retrieved Components . | . . . . . . . Parts Scanalyzed 1 | . . . . . 1 . Part Schematics Acquired . | . . . . . . . Parts Damaged . | . . . . . . . Bothacking | -11 -10 -10 -10 -9 -8 -8 ------------ Run | Scr Mat Min Exi Min Mat Gar Used RIF Installer . | . . . . . . . Robots Hacked . | . . . . . . . Non-combat . | . . . . . . . Combat . | . . . . . . . Robot Hacks Applied . | . . . . . . . Relay Couplers Released . | . . . . . . . Fabnet Peak Effective % . | . . . . . . . Robots Rewired . | . . . . . . . Allies Hacked . | . . . . . . . Hacks Repelled . | . . . . . . . Allies | -11 -10 -10 -10 -9 -8 -8 -------- Run | Scr Mat Min Exi Min Mat Gar Total Allies 2 | . . 2 . . . . Largest Group 2 | . . 2 2 . . . Highest-Rated Group 47 | . . 47 47 . . . Highest-Rated Ally 31 | . . 31 31 . . . Total Orders . | . . . . . . . Ally Attacks 1 | . . 1 . . . . Total Damage 21 | . . 21 . . . . Kills . | . . . . . . . Allies Corrupted . | . . . . . . . Allies Melted . | . . . . . . . Intel | -11 -10 -10 -10 -9 -8 -8 ------- Run | Scr Mat Min Exi Min Mat Gar Robot Analysis Total 2 | . 2 . . . . . Derelict Logs Recovered . | . . . . . . . Drone Launches . | . . . . . . . Drone Recoveries . | . . . . . . . Exploration | -11 -10 -10 -10 -9 -8 -8 ------------- Run | Scr Mat Min Exi Min Mat Gar Turns Passed 1883 | 4 369 346 392 161 561 50 Spaces Moved 870 | 1 179 167 228 68 172 55 Core 70 | . . . . . 15 55 Treads 800 | 1 179 167 228 68 157 . Legs . | . . . . . . . Wheels . | . . . . . . . Hover . | . . . . . . . Flight . | . . . . . . . Fastest Speed 50 | 160 160 160 160 240 50 50 Average Speed 174 | 160 160 160 170 240 223 50 Slowest Speed 240 | 160 160 160 240 240 240 50 Overloaded Moves . | . . . . . . . Propulsion Burnouts . | . . . . . . . Robots Hopped . | . . . . . . . Cave-ins Triggered . | . . . . . . . Exploration Rate (%) 29 | 2 38 46 61 28 21 11 Regions Visited 6 Branch Regions 3 Pre-discovered Areas . | . . . . . . . Known Exits Taken 2 | . 1 . . . 1 . Unknown Exits Taken 4 | 1 . 1 1 1 . . Scrap Searched 1 | . . . . 1 . . Spaces Dug 42 | . . 26 . . 16 . Terrain Destroyed 199 | . 14 26 . . 159 . Melee . | . . . . . . . Projectile . | . . . . . . . AOE 199 | . 14 26 . . 159 . Terrain Rammed . | . . . . . . . Walls Destroyed . | . . . . . . . Machines Disabled . | . . . . . . . Actions | -11 -10 -10 -10 -9 -8 -8 --------- Run | Scr Mat Min Exi Min Mat Gar Total 1119 | 6 222 206 232 67 321 65 Wait 118 | . 9 4 . . 104 1 Move 865 | . 178 166 227 67 172 55 Hop . | . . . . . . . Pick Up 13 | . 7 . 3 . 3 . Fast Attach 7 | . . 2 1 . 4 . Attach 8 | 2 . 1 . . 3 2 Detach 1 | . . 1 . . . . Swap 9 | . 2 4 . . 3 . Drop 15 | 4 1 2 1 . 7 . Fire 82 | . 25 25 . . 25 7 Melee . | . . . . . . . Ram . | . . . . . . . Kick . | . . . . . . . Crush 1 | . . 1 . . . . Escape Stasis . | . . . . . . . Rewire . | . . . . . . . Trap . | . . . . . . . Miscellaneous . | . . . . . . . Route ------- -11/Scrapyard -10/Materials -10/Mines (discovered 3 exits: [*Mat x2] / *Exi) -10/Exiles -9/Mines -8/Materials -8/Garrison History --------- Turn | Location | Event 5 | -11/Scrapyard | Discovered new exit (range 0) 5 | -11/Scrapyard | Entered Materials 35 | -10/Materials | Identified exit to Mines 313 | -10/Materials | Build established: Mutant 374 | -10/Materials | Entered Mines 499 | -10/Mines | Discovered new exit (range 8) 560 | -10/Mines | Discovered new exit (range 5) 600 | -10/Mines | Found a damaged Exp. Sensor Array with a note attached 604 | -10/Mines | Found Prototype Device 604 | -10/Mines | Identified Exp. Sensor Array 713 | -10/Mines | Deemed a non-threat by the Exiles lab entrance 713 | -10/Mines | Discovered new exit (range 5) 720 | -10/Mines | Entered Exiles 720 | -10/Exiles | Accompanied by 2 allies 750 | -10/Exiles | Led the pair of lost Derelicts to a safe place 759 | -10/Exiles | Met 8R-AWN 789 | -10/Exiles | Met EX-HEX 837 | -10/Exiles | Met EX-BIN 860 | -10/Exiles | Aligned with FarCom system 861 | -10/Exiles | Given EX-Vault access code 898 | -10/Exiles | Opened EX-Vault 907 | -10/Exiles | Found Field Lobotomy Kit 941 | -10/Exiles | Warned to stay clear of 0b10 Research branches 965 | -10/Exiles | Exiles lab attacked by MAIN.C 1093 | -10/Exiles | Discovered new exit (range 10) 1112 | -10/Exiles | Left Exiles lab with Field Lobotomy Kit 1112 | -10/Exiles | Entered Mines 1247 | -9/Mines | Discovered new exit (range 12) 1273 | -9/Mines | Entered Materials 1273 | -8/Materials | Evolved 4 slots: Propulsion x1, Utility x3 1753 | -8/Materials | Garrison activated, responded to threat 1826 | -8/Materials | Core integrity fell below 50% 1834 | -8/Materials | Identified exit to Garrison 1834 | -8/Materials | Entered Garrison 1846 | -8/Garrison | Lost 6 parts (1p2n2u1w) 1862 | -8/Garrison | Triggered checkpoint 1868 | -8/Garrison | Core integrity fell below 20% 1884 | -8/Garrison | Destroyed by G-47 Trooper with Particle Gun Last Messages --------------- 01824_ Dropped Hcp. Storage Unit. 01824_ Critical hit (Burn: +37). 01825_ Dropped Sml. Storage Unit. 01825_ U-05 Engineer lays Concrete. 01826_ Acquired Lgt. Treads. 01827_ U-05 Engineer lays Concrete. 01828_ U-05 Engineer builds a Wall. 01829_ Critical hit (Burn: +37). 01833_ U-05 Engineer lays Concrete. 01834_ Connecting with Garrison Access... >>Unlock Access door unlocked. 01834_ EXIT=UNLOCKED: GARRISON LOCATION=GARRISON GOAL=ESCAPE 01834_ Receiving FarCom transmissions... 01862_ Beams of light sweep through the air. An alarm sounds. 01868_ Lgt. Treads destroyed. 01883_ Assault Rifle destroyed. 01883_ Critical hit (Burn: +37). Map ----- +----------------------------------------------------+ | | | | | | | | | | | ??????????????????????????????????????????? | | ??????????????????????????????????????????? | | ??????????????????????????????????????????? | | ??????????????????????????????????????????? | | ??????????????????????????????????????????? | | ??????????????????????????????????????????? | | ??????????????????????????????????????????? | | ??????????????????????????????????????????? | | ??????????????????????????????????????????? | | ?????????????????################?????????? | | ?????????????????# #?????????? | | ?????????????????# #?????????? | | ?????????????????# #?????????? | | ?????????????????# ############?????????? | | ?????????????????# #????????????????????? | | ?????????????????# #????????????????????? | | ?????????????????# ######???????????????? | | ?????????????????# #???????????????? | | ?????????????????# #???????????????? | | ?????????????????# ### #???????????????? | | ?????????????????# #?# @#???????????????? | | ?????????????????# #?# g#???????????????? | | ?????????????????# #?# ??????????????? | | ?????????????????# #?# g #?????????????? | | ?????????????????# #?# #?????????????? | | ?????????????????# #?# ###?????????????? | | ?????????????????# #?# #???????????????? | | ?????????????????# #?# #???????????????? | | ?????????????????# #?# #???????????????? | | ?????????????????# #?# #???????????????? | | ?????????????????# #?# ???????????????? | | ??????# ######### #?# ???????????????? | | ???? #?# ???????????????? | | ???? #?? #???????????????? | | ???? #?? ????????????????? | | ?????#################??##????????????????? | | ??????????????????????????????????????????? | | ??????????????????????????????????????????? | | ??????????????????????????????????????????? | | ??????????????????????????????????????????? | | ??????????????????????????????????????????? | | ??????????????????????????????????????????? | | ??????????????????????????????????????????? | | ??????????????????????????????????????????? | | ??????????????????????????????????????????? | +----------------------------------------------------+ Best States ------------- Heat Dissipation 31 Energy Generation 14 Energy Capacity 250 Matter Stores 300 Matter Capacity 300 Sight Range 16 Terrain Scan Density 10 Armor Coverage 300 Evasion (%) 50 Recoil Reduction 2 Item Schematics ----------------- None Robot Schematics ------------------ None Fabricated ------------ Nothing Alien Tech Used ----------------- None Achievements -------------- None Challenges ------------ None Game ------ Seed ThrusterGammaCannon Manual? 0 Play Time 00:16:17 Cumulative 289.8 hours Start 2022.08.16 @ 14:51:40 End 2022.08.16 @ 18:44:05 Sessions 4 Manual Loads 0 Difficulty Rogue Special Mode None Game No. 336 Rogue 336 Adventurer 0 Explorer 0 Win Type - Total 11 Types 8/0/2/1/0/0/0/0/0 Lore% 74 Gallery% 87 Achievement% 76 Wizard Run 0 Options --------- ASCII 0 Keyboard 0 Movement Numpad Keybinds 0 Fullscreen 1 Font 18/Terminus Map View 76x50 Tactical HUD 1 Map Filters NONE Filters NONE Steam 1 RUN: 6e4be166-790f-42f2-a0c3-4a50d8df2a3c